fUST/lending_fUST_20250806
["ID","MTS","AMOUNT","RATE_DAILY","PERIOD"]
[377669008,1754482270189,-460.0,0.00032058,120]
[377669009,1754482270199,-460.0,0.00032058,120]
[377669010,1754482270208,-260.7,0.00032058,120]
[377669011,1754482270217,-460.0,0.00032058,120]
[377669012,1754482270227,-460.0,0.00032058,120]
[377669013,1754482270236,-460.0,0.00032058,120]
[377669014,1754482270246,-460.0,0.00032058,120]
[377669015,1754482270255,-460.0,0.00032058,120]
[377669016,1754482270265,-460.0,0.00032058,120]
[377669017,1754482270274,-460.0,0.00032058,120]
[377669018,1754482270283,-460.0,0.00032058,120]
[377669019,1754482270293,-460.0,0.00032058,120]
[377669020,1754482270302,-460.0,0.00032058,120]
[377669021,1754482270312,-460.0,0.00032058,120]
[377669022,1754482270321,-460.0,0.00032058,120]
[377669023,1754482270330,-460.0,0.00032058,120]
[377669024,1754482270340,-460.0,0.00032058,120]
[377669025,1754482270349,-460.0,0.00032058,120]
[377669026,1754482270359,-460.0,0.00032058,120]
[377669027,1754482270369,-462.46698713,0.00032058,120]
[377669028,1754482270379,-460.0,0.00032058,120]
[377669029,1754482270389,-460.0,0.00032058,120]
[377669030,1754482270399,-460.0,0.00032058,120]
[377669031,1754482270408,-460.0,0.00032058,120]
[377669032,1754482270417,-460.0,0.00032058,120]
[377669033,1754482270427,-460.0,0.00032058,120]
[377669034,1754482270437,-460.0,0.00032058,120]
[377669035,1754482270446,-460.0,0.00032058,120]
[377669036,1754482270455,-460.0,0.00032058,120]
[377669037,1754482270465,-151.0,0.00032058,7]
[377669038,1754482270475,-151.0,0.00032058,7]
[377669039,1754482270485,-151.0,0.00032058,7]
[377669040,1754482270495,-151.0,0.00032058,7]
[377669041,1754482270504,-151.0,0.00032058,7]
[377669042,1754482270514,-151.0,0.00032058,7]
[377669043,1754482270524,-258.976795,0.00032058,7]
[377669044,1754482270533,-151.0,0.00032058,7]
[377669045,1754482270542,-151.0,0.00032058,7]
[377669046,1754482270551,-151.0,0.00032058,7]
[377669047,1754482270561,-151.0,0.00032058,7]
[377669048,1754482270571,-151.0,0.00032058,7]
[377669049,1754482270581,-151.0,0.00032058,7]
[377669050,1754482270591,-201.24475084,0.00032058,7]
[377669051,1754482270601,-151.0,0.00032058,7]
[377669052,1754482270612,-151.0,0.00032058,7]
[377669053,1754482270622,-151.0,0.00032058,7]
[377669054,1754482270632,-151.0,0.00032058,7]
[377669055,1754482270646,-151.0,0.00032058,7]
[377669056,1754482270655,-151.0,0.00032058,7]
[377669057,1754482270665,-151.0,0.00032058,7]
[377669058,1754482270674,-212.516364,0.00032058,7]
[377669059,1754482270684,-151.20091,0.00032058,7]
[377669060,1754482270694,-151.0,0.00032058,7]
[377669061,1754482270703,-151.0,0.00032059,7]
[377669062,1754482270714,-151.0,0.00032059,7]
[377669063,1754482270723,-151.0,0.00032059,7]
[377669064,1754482270732,-151.0,0.00032059,7]
[377669065,1754482270742,-151.0,0.00032059,7]
[377669066,1754482270751,-151.0,0.00032059,7]
[377669067,1754482270760,-151.0,0.00032059,7]
[377669068,1754482270769,-151.0,0.00032059,7]
[377669069,1754482270778,-151.0,0.00032059,7]
[377669070,1754482270788,-151.0,0.00032059,7]
[377669071,1754482270797,-151.0,0.00032059,7]
[377669072,1754482270807,-151.0,0.00032059,7]
[377669073,1754482270817,-151.0,0.00032059,7]
[377669074,1754482270827,-151.0,0.00032059,7]
[377669075,1754482270837,-151.0,0.00032059,7]
[377669076,1754482270847,-151.0,0.00032059,7]
[377669077,1754482270856,-151.0,0.00032059,7]
[377669078,1754482270867,-151.0,0.00032059,7]
[377669079,1754482270876,-151.0,0.00032059,7]
[377669080,1754482270886,-151.0,0.00032059,7]
[377669081,1754482270896,-151.0,0.00032059,7]
[377669082,1754482270905,-151.0,0.00032059,7]
[377669083,1754482270915,-151.0,0.00032059,7]
[377669084,1754482270925,-151.0,0.00032059,7]
[377669085,1754482270935,-151.0,0.00032059,7]
[377669086,1754482270944,-151.0,0.00032059,7]
[377669087,1754482270954,-151.0,0.00032059,7]
[377669088,1754482270963,-151.0,0.00032059,7]
[377669089,1754482270973,-151.0,0.00032059,7]
[377669090,1754482270983,-151.0,0.00032059,7]
[377669091,1754482270992,-151.0,0.00032059,7]
[377669092,1754482271002,-151.0,0.00032059,7]
[377669093,1754482271013,-151.0,0.00032059,7]
[377669094,1754482271027,-151.0,0.00032059,7]
[377669095,1754482271036,-151.0,0.00032059,7]
[377669096,1754482271046,-151.0,0.00032059,7]
[377669097,1754482271056,-232.539859,0.00032059,7]
[377669098,1754482271066,-214.468186,0.00032059,7]
[377669099,1754482271076,-214.468186,0.00032059,7]
[377669100,1754482271086,-214.468186,0.00032059,7]
[377669101,1754482271096,-214.468186,0.00032059,7]
[377669102,1754482271105,-214.468186,0.00032059,7]
[377669103,1754482271117,-214.468186,0.00032059,7]
[377669104,1754482271128,-151.0,0.00032059,7]
[377669105,1754482271138,-151.0,0.00032059,7]
[377669106,1754482271148,-151.0,0.00032059,7]
[377669107,1754482271158,-151.0,0.00032059,7]
[377669108,1754482271167,-151.0,0.00032059,7]
[377669109,1754482271176,-151.0,0.00032059,7]
[377669110,1754482271186,-151.0,0.00032059,7]
[377669111,1754482271195,-251.714054,0.00032059,7]
[377669112,1754482271205,-151.0,0.00032059,7]
[377669113,1754482271213,-151.0,0.00032059,7]
[377669114,1754482271223,-151.0,0.00032059,7]
[377669115,1754482271233,-151.0,0.00032059,7]
[377669116,1754482271242,-151.0,0.00032059,7]
[377669117,1754482271252,-151.0,0.00032059,7]
[377669118,1754482271261,-151.0,0.00032059,7]
[377669119,1754482271270,-151.0,0.00032059,7]
[377669120,1754482271279,-151.0,0.00032059,7]
[377669121,1754482271290,-277.656235,0.00032059,7]
[377669122,1754482271300,-277.656235,0.00032059,7]
[377669123,1754482271309,-277.656235,0.00032059,7]
[377669124,1754482271319,-277.656235,0.00032059,7]
[377669125,1754482271328,-277.656235,0.00032059,7]
[377669126,1754482271337,-277.656235,0.00032059,7]
[377669127,1754482271347,-640.169219,0.00032059,7]
[377669128,1754482271357,-640.169219,0.00032059,7]
[377669129,1754482271369,-640.169219,0.00032059,7]
[377669130,1754482271378,-640.169219,0.00032059,7]
[377669131,1754482271388,-640.169219,0.00032059,7]
[377669132,1754482271398,-640.169219,0.00032059,7]
[377669133,1754482271407,-151.0,0.00032059,7]
[377669134,1754482271418,-151.0,0.00032059,7]
[377669135,1754482271427,-151.0,0.00032059,7]
[377669136,1754482271437,-151.0,0.00032059,7]
[377669137,1754482271447,-151.0,0.00032059,7]
[377669138,1754482271456,-151.0,0.00032059,7]
[377669139,1754482271466,-151.0,0.00032064,7]
[377669140,1754482271476,-213.222436,0.00032064,7]
[377669141,1754482271485,-151.0,0.00032064,7]
[377669142,1754482271495,-151.0,0.00032064,7]
[377669143,1754482271504,-151.0,0.00032064,7]
[377669144,1754482271513,-151.0,0.00032064,7]
[377669145,1754482271523,-185.258165,0.00032064,7]
[377669146,1754482271532,-185.258165,0.00032064,7]
[377669147,1754482271542,-151.0,0.00032064,7]
[377669148,1754482271551,-151.0,0.00032064,7]
[377669149,1754482271561,-151.0,0.00032064,7]
[377669150,1754482271571,-151.0,0.00032064,7]
[377669151,1754482271580,-151.0,0.00032064,7]
[377669152,1754482271590,-151.0,0.00032064,7]
[377669153,1754482271599,-312.16666667,0.000321,30]
[377669154,1754482271609,-312.16666667,0.000321,120]
[377669155,1754482271619,-151.0,0.00032113,7]
[377669156,1754482271629,-185.06,0.00032118,15]
[377669157,1754482271644,-151.91,0.00032119,15]
[377669158,1754482271654,-1386.6,0.000322,2]
[377669159,1754482271662,-312.16666667,0.000322,7]
[377669160,1754482271672,-185.06,0.00032218,15]
[377669161,1754482271682,-151.91,0.00032219,15]
[377669162,1754482271692,-9159.8,0.000323,7]
[377669163,1754482271701,-185.06,0.00032318,15]
[377669164,1754482271712,-151.91,0.00032319,15]
[377669165,1754482271722,-1525.43,0.000324,7]
[377669166,1754482271731,-185.06,0.00032418,15]
[377669167,1754482271740,-151.91,0.00032419,15]
[377669168,1754482271750,-5500.0,0.00032452,5]
[377669169,1754482271760,-3245.33566551,0.00032513,18]
[377669170,1754482271771,-185.06,0.00032518,15]
[377669171,1754482271780,-151.91,0.00032519,15]
[377669172,1754482271789,-185.06,0.00032618,15]
[377669173,1754482271800,-152.19428644,0.00032619,15]
[377669174,1754482271810,-151.0,0.00032704,7]
[377669175,1754482271819,-185.258165,0.00032704,7]
[377669176,1754482271829,-185.258165,0.00032704,7]
[377669177,1754482271838,-151.0,0.00032704,7]
[377669178,1754482271848,-185.06,0.00032718,15]
[377669179,1754482271858,-185.06,0.00032818,15]
[377669180,1754482271869,-500.0,0.00032876,120]
[377669181,1754482271879,-3525.02,0.00032876,120]
[377669182,1754482271889,-2673.84446701,0.00032897,2]
[377669183,1754482271899,-185.06,0.00032918,60]
[377669184,1754482271909,-3500.68952186,0.00032921,2]
[377669185,1754482271918,-200.0,0.00032987,15]
[377669186,1754482271928,-200.0,0.00032987,15]
[377669187,1754482271938,-200.0,0.00032987,15]
[377669188,1754482271948,-379.0,0.00032987,15]
[377669189,1754482271958,-231.78005385,0.00033,120]
[377669190,1754482271967,-231.78005385,0.00033,3]
[377669191,1754482271977,-160.0,0.00033,120]
[377669192,1754482271987,-312.16666667,0.00033,3]
[377669193,1754482271997,-312.16666667,0.00033,30]
[377669194,1754482272007,-527.46908335,0.00033,30]
[377669195,1754482272017,-527.46908335,0.00033,120]
[377669196,1754482272027,-6000.0,0.00033,5]
[377669197,1754482272037,-185.06,0.00033018,60]
[377669198,1754482272046,-5543.0316172,0.00033061,2]
[377669199,1754482272056,-600.0,0.00033071,2]
[377669200,1754482272066,-600.0,0.00033071,2]
[377669201,1754482272076,-600.0,0.00033071,2]
[377669202,1754482272085,-185.06,0.00033118,60]
[377669203,1754482272095,-180.768164,0.00033165,2]
[377669204,1754482272104,-185.06,0.00033218,60]
[377669205,1754482272114,-185.06,0.00033318,60]
[377669206,1754482272253,-3888.54387131,0.00033351,2]
[377669207,1754482272264,-206.62,0.00033354,2]
[377669208,1754482272274,-185.06,0.00033418,60]
[377669209,1754482272283,-3245.33566551,0.00033483,20]
[377669210,1754482272293,-185.06,0.00033518,60]
[377669211,1754482272302,-6500.0,0.00033548,5]
[377669212,1754482272313,-185.06,0.00033618,60]
[377669213,1754482272327,-3525.02,0.00033698,120]
[377669214,1754482272341,-185.06,0.00033718,60]
[377669215,1754482272351,-185.06,0.00033818,60]
[377669216,1754482272363,-157.627213,0.00033825,60]
[377669217,1754482272373,-185.06,0.00033918,60]
[377669218,1754482272383,-185.06,0.00034018,60]
[377669219,1754482272393,-5000.0,0.00034059,4]
[377669220,1754482272403,-2348.96461843,0.00034096,5]
[377669221,1754482272414,-185.06,0.00034118,60]
[377669222,1754482272423,-636.0,0.00034196,2]
[377669223,1754482272433,-2148.0,0.00034196,2]
[377669224,1754482272444,-971.0,0.00034196,2]
[377669225,1754482272454,-1386.6,0.000342,14]
[377669226,1754482272464,-1525.43,0.000342,7]
[377669227,1754482272473,-185.06,0.00034218,60]
[377669228,1754482272483,-500.0,0.00034246,120]
[377669229,1754482272493,-408.0,0.00034276,2]
[377669230,1754482272502,-9159.8,0.000343,14]
[377669231,1754482272513,-151.0,0.000343,14]
[377669232,1754482272522,-185.06,0.00034318,60]
[377669233,1754482272532,-1152.0,0.00034365,2]
[377669234,1754482272542,-185.06,0.00034418,60]
[377669235,1754482272551,-3245.33566551,0.00034454,22]
[377669236,1754482272561,-185.06,0.00034518,60]
[377669237,1754482272570,-3525.02,0.0003452,120]
[377669238,1754482272580,-1577.09,0.00034564,30]
[377669239,1754482272589,-185.06,0.00034618,60]
[377669240,1754482272598,-157.627213,0.00034688,60]
[377669241,1754482272608,-185.06,0.00034718,60]
[377669242,1754482272618,-151.0,0.00034761,30]
[377669243,1754482272627,-185.06,0.00034818,60]
[377669244,1754482272638,-185.06,0.00034918,60]
[377669245,1754482272649,-185.06,0.00035018,60]
[377669246,1754482272661,-185.06,0.00035118,60]
[377669247,1754482272673,-877.5,0.00035163,30]
[377669248,1754482272684,-185.54610055,0.00035218,60]
[377669249,1754482272693,-151.0,0.00035342,14]
[377669250,1754482272703,-151.0,0.00035342,14]
[377669251,1754482272713,-3525.02,0.00035342,120]
[377669252,1754482272722,-157.627213,0.00035379,2]
[377669253,1754482272733,-3245.33566551,0.00035425,24]
[377669254,1754482272742,-157.627213,0.0003555,60]
[377669255,1754482272752,-156.480839,0.0003555,60]
[377669256,1754482272762,-158.852826,0.0003555,60]
[377669257,1754482272772,-156.480841,0.0003555,60]
[377669258,1754482272782,-155.541342,0.0003555,60]
[377669259,1754482272792,-155.54134,0.0003555,60]
[377669260,1754482272802,-155.54134,0.0003555,60]
[377669261,1754482272811,-155.54134,0.0003555,60]
[377669262,1754482272821,-170.13791,0.0003555,60]
[377669263,1754482272831,-217.11075,0.0003555,60]
[377669264,1754482272841,-157.627213,0.0003558,3]
[377669265,1754482272851,-200.0,0.000356,120]
[377669266,1754482272860,-353.31934,0.000356,120]
[377669267,1754482272871,-500.0,0.00035616,120]
[377669268,1754482272881,-151.0,0.00035617,30]
[377669269,1754482272891,-200.0,0.0003565,41]
[377669270,1754482272900,-1577.09,0.00035996,60]
[377669271,1754482272909,-600.0,0.00036039,2]
[377669272,1754482272919,-600.0,0.00036039,2]
[377669273,1754482272928,-600.0,0.00036039,2]
[377669274,1754482272938,-3525.02,0.00036164,120]
[377669275,1754482272948,-200.0,0.00036169,15]
[377669276,1754482272957,-200.0,0.00036169,15]
[377669277,1754482272967,-200.0,0.00036169,15]
[377669278,1754482272977,-200.0,0.00036169,15]
[377669279,1754482272987,-200.0,0.00036169,15]
[377669280,1754482272997,-371.0,0.00036169,15]
[377669281,1754482273006,-1525.43,0.000362,7]
[377669282,1754482273016,-206.61650571,0.00036327,2]
[377669283,1754482273025,-430.8285166,0.00036354,30]
[377669284,1754482273035,-3245.33566551,0.00036396,26]
[377669285,1754482273045,-151.0,0.00036473,30]
[377669286,1754482273055,-191.279418,0.00036776,2]
[377669287,1754482273064,-500.0,0.00036986,120]
[377669288,1754482273073,-3525.02,0.00036986,120]
[377669289,1754482273083,-151.0,0.00037,120]
[377669290,1754482273093,-636.0,0.00037196,2]
[377669291,1754482273103,-2148.0,0.00037196,2]
[377669292,1754482273113,-971.0,0.00037196,2]
[377669293,1754482273123,-151.0,0.0003723,14]
[377669294,1754482273135,-151.0,0.0003723,14]
[377669295,1754482273145,-1613.0,0.00037231,2]
[377669296,1754482273155,-408.0,0.00037276,2]
[377669297,1754482273165,-151.0,0.00037328,30]
[377669298,1754482273174,-3245.33566551,0.00037367,29]
[377669299,1754482273185,-1577.09,0.00037428,60]
[377669300,1754482273195,-157.627213,0.0003748,3]
[377669301,1754482273204,-157.627213,0.00037506,2]
[377669302,1754482273213,-156.480839,0.00037506,2]
[377669303,1754482273223,-158.852826,0.00037506,2]
[377669304,1754482273232,-155.54134,0.00037506,2]
[377669305,1754482273242,-861.6570332,0.00037565,30]
[377669306,1754482273252,-500.0,0.000377,120]
[377669307,1754482273262,-500.0,0.000377,120]
[377669308,1754482273272,-299.6897718,0.00037702,30]
[377669309,1754482273281,-585.5002733,0.00037702,30]
[377669310,1754482273291,-292.9962021,0.00037702,30]
[377669311,1754482273300,-292.9962021,0.00037702,30]
[377669312,1754482273309,-579.0986033,0.00037702,30]
[377669313,1754482273319,-579.0986033,0.00037702,30]
[377669314,1754482273329,-292.9962021,0.00037702,30]
[377669315,1754482273338,-579.0986033,0.00037702,30]
[377669316,1754482273347,-292.9962021,0.00037702,30]
[377669317,1754482273356,-292.9962021,0.00037702,30]
[377669318,1754482273366,-579.0986033,0.00037702,30]
[377669319,1754482273376,-292.9962021,0.00037702,30]
[377669320,1754482273386,-440.5777953,0.00037702,30]
[377669321,1754482273395,-153.0,0.00037702,30]
[377669322,1754482273405,-153.0,0.00037702,30]
[377669323,1754482273415,-292.9962021,0.00037702,30]
[377669324,1754482273425,-509.7231255,0.00037702,30]
[377669325,1754482273434,-3525.02,0.00037808,120]
[377669326,1754482273444,-160.0,0.00038,30]
[377669327,1754482273455,-500.0,0.00038052,7]
[377669328,1754482273464,-203.0,0.0003808,48]
[377669329,1754482273473,-151.0,0.000381,120]
[377669330,1754482273483,-500.0,0.00038184,2]
[377669331,1754482273493,-151.0,0.00038184,14]
[377669332,1754482273501,-500.0,0.00038184,2]
[377669333,1754482273511,-245.0,0.00038184,2]
[377669334,1754482273520,-151.0,0.00038184,30]
[377669335,1754482273529,-151.0,0.00038184,2]
[377669336,1754482273539,-500.0,0.00038184,2]
[377669337,1754482273549,-500.0,0.00038184,2]
[377669338,1754482273559,-468.0,0.00038184,2]
[377669339,1754482273569,-468.0,0.00038184,2]
[377669340,1754482273579,-151.0,0.00038184,2]
[377669341,1754482273588,-151.0,0.00038184,2]
[377669342,1754482273598,-500.0,0.00038184,2]
[377669343,1754482273607,-500.0,0.00038184,2]
[377669344,1754482273620,-151.0,0.00038184,2]
[377669345,1754482273630,-500.0,0.00038184,2]
[377669346,1754482273642,-152.2967874,0.00038184,2]
[377669347,1754482273652,-500.0,0.00038184,2]
[377669348,1754482273662,-1000.0,0.00038184,2]
[377669349,1754482273672,-710.80708923,0.00038184,2]
[377669350,1754482273683,-3245.33566551,0.00038338,31]
[377669351,1754482273692,-500.0,0.00038356,120]
[377669352,1754482273701,-1525.43,0.000384,7]
[377669353,1754482273711,-644.0,0.000384,2]
[377669354,1754482273722,-500.0,0.00038431,7]
[377669355,1754482273731,-528.91645348,0.00038458,2]
[377669356,1754482273741,-500.0,0.00038458,2]
[377669357,1754482273750,-293.88340443,0.00038458,2]
[377669358,1754482273760,-596.81336106,0.00038458,2]
[377669359,1754482273770,-500.0,0.00038458,2]
[377669360,1754482273779,-468.0,0.00038458,2]
[377669361,1754482273789,-468.0,0.00038458,2]
[377669362,1754482273799,-500.0,0.00038458,2]
[377669363,1754482273809,-500.0,0.00038458,2]
[377669364,1754482273818,-500.0,0.00038458,2]
[377669365,1754482273828,-500.0,0.00038458,2]
[377669366,1754482273838,-160.3561046,0.00038469,30]
[377669367,1754482273848,-579.0986033,0.00038469,30]
[377669368,1754482273858,-160.3561046,0.00038469,30]
[377669369,1754482273870,-579.0986033,0.00038469,30]
[377669370,1754482273879,-292.9962021,0.00038469,30]
[377669371,1754482273889,-292.9962021,0.00038469,30]
[377669372,1754482273898,-401.2236642,0.00038469,30]
[377669373,1754482273907,-160.2364346,0.00038469,30]
[377669374,1754482273917,-578.6568803,0.00038469,30]
[377669375,1754482273926,-153.0,0.00038469,30]
[377669376,1754482273935,-153.0,0.00038469,30]
[377669377,1754482273945,-153.0,0.00038469,30]
[377669378,1754482273954,-153.0,0.00038469,30]
[377669379,1754482273963,-153.0,0.00038469,30]
[377669380,1754482273972,-430.8285166,0.00038476,30]
[377669381,1754482273982,-430.8285166,0.00038476,30]
[377669382,1754482273991,-430.8285166,0.00038476,30]
[377669383,1754482274003,-430.8285166,0.00038476,30]
[377669384,1754482274013,-430.8285166,0.00038476,30]
[377669385,1754482274023,-483.523283,0.00038476,30]
[377669386,1754482274032,-579.0986033,0.00038476,30]
[377669387,1754482274042,-160.3561046,0.00038476,30]
[377669388,1754482274052,-585.9924042,0.00038476,30]
[377669389,1754482274063,-579.0986033,0.00038476,30]
[377669390,1754482274073,-160.3561046,0.00038476,30]
[377669391,1754482274082,-579.0986033,0.00038476,30]
[377669392,1754482274092,-160.3561046,0.00038476,30]
[377669393,1754482274102,-292.9962021,0.00038476,30]
[377669394,1754482274111,-153.0,0.00038476,30]
[377669395,1754482274122,-153.0,0.00038476,30]
[377669396,1754482274131,-591.4668424,0.00038476,30]
[377669397,1754482274141,-153.0,0.00038476,30]
[377669398,1754482274152,-292.9962021,0.00038476,30]
[377669399,1754482274162,-163.7068662,0.00038476,30]
[377669400,1754482274172,-292.9962021,0.00038476,30]
[377669401,1754482274182,-153.0,0.00038476,30]
[377669402,1754482274191,-153.0,0.00038476,30]
[377669403,1754482274201,-153.0,0.00038476,30]
[377669404,1754482274211,-500.0,0.00038486,7]
[377669405,1754482274220,-1386.6,0.000385,14]
[377669406,1754482274228,-256.862093,0.00038523,14]
[377669407,1754482274245,-151.0,0.00038523,14]
[377669408,1754482274255,-151.0,0.00038523,14]
[377669409,1754482274287,-151.0,0.00038523,14]
[377669410,1754482274296,-181.564175,0.00038523,14]
[377669411,1754482274306,-262.247174,0.00038523,14]
[377669412,1754482274315,-151.0,0.00038523,14]
[377669413,1754482274324,-151.0,0.00038523,14]
[377669414,1754482274333,-151.0,0.00038523,14]
[377669415,1754482274343,-151.0,0.00038523,14]
[377669416,1754482274353,-214.468186,0.00038523,14]
[377669417,1754482274362,-214.468186,0.00038523,14]
[377669418,1754482274375,-151.0,0.00038523,14]
[377669419,1754482274384,-151.0,0.00038523,14]
[377669420,1754482274393,-151.0,0.00038523,14]
[377669421,1754482274402,-219.910588,0.00038523,14]
[377669422,1754482274412,-277.656235,0.00038523,14]
[377669423,1754482274422,-277.656235,0.00038523,14]
[377669424,1754482274431,-640.169219,0.00038523,14]
[377669425,1754482274441,-640.169219,0.00038523,14]
[377669426,1754482274451,-151.0,0.00038523,14]
[377669427,1754482274461,-151.0,0.00038523,14]
[377669428,1754482274471,-151.0,0.00038523,14]
[377669429,1754482274480,-151.0,0.00038523,14]
[377669430,1754482274489,-151.0,0.00038523,30]
[377669431,1754482274499,-151.0,0.00038523,14]
[377669432,1754482274508,-300.0,0.00038523,30]
[377669433,1754482274517,-300.0,0.00038523,30]
[377669434,1754482274527,-151.0,0.00038523,30]
[377669435,1754482274537,-151.0,0.00038523,30]
[377669436,1754482274547,-151.0,0.00038523,30]
[377669437,1754482274557,-300.0,0.00038523,30]
[377669438,1754482274568,-300.0,0.00038523,30]
[377669439,1754482274578,-16000.0,0.00038523,30]
[377669440,1754482274588,-151.0,0.00038523,30]
[377669441,1754482274597,-151.0,0.00038523,30]
[377669442,1754482274607,-151.0,0.00038523,30]
[377669443,1754482274617,-300.0,0.00038523,30]
[377669444,1754482274626,-500.0,0.00038523,30]
[377669445,1754482274637,-16592.0,0.00038523,30]
[377669446,1754482274649,-151.0,0.00038523,30]
[377669447,1754482274658,-300.0,0.00038523,30]
[377669448,1754482274667,-151.0,0.00038523,30]
[377669449,1754482274678,-300.0,0.00038523,30]
[377669450,1754482274688,-500.0,0.00038523,30]
[377669451,1754482274698,-151.0,0.00038523,30]
[377669452,1754482274707,-17205.904,0.00038523,30]
[377669453,1754482274717,-151.0,0.00038523,30]
[377669454,1754482274726,-151.0,0.00038523,30]
[377669455,1754482274736,-300.0,0.00038523,30]
[377669456,1754482274746,-500.0,0.00038523,30]
[377669457,1754482274755,-151.0,0.00038523,30]
[377669458,1754482274765,-17842.522448,0.00038523,30]
[377669459,1754482274775,-151.0,0.00038523,30]
[377669460,1754482274784,-300.0,0.00038523,30]
[377669461,1754482274794,-300.0,0.00038523,30]
[377669462,1754482274804,-151.0,0.00038523,30]
[377669463,1754482274814,-500.0,0.00038523,30]
[377669464,1754482274823,-18502.69577858,0.00038523,30]
[377669465,1754482274833,-151.0,0.00038523,30]
[377669466,1754482274843,-300.0,0.00038523,30]
[377669467,1754482274853,-151.0,0.00038523,30]
[377669468,1754482274863,-151.0,0.00038523,30]
[377669469,1754482274877,-19187.29552238,0.00038523,30]
[377669470,1754482274887,-151.0,0.00038523,30]
[377669471,1754482274897,-300.0,0.00038523,30]
[377669472,1754482274907,-500.0,0.00038523,30]
[377669473,1754482274916,-300.0,0.00038523,30]
[377669474,1754482274927,-151.0,0.00038523,30]
[377669475,1754482274937,-151.0,0.00038523,30]
[377669476,1754482274947,-19897.22545671,0.00038523,30]
[377669477,1754482275077,-151.0,0.00038523,30]
[377669478,1754482275087,-300.0,0.00038523,30]
[377669479,1754482275097,-500.0,0.00038523,30]
[377669480,1754482275107,-300.0,0.00038523,30]
[377669481,1754482275118,-151.0,0.00038523,30]
[377669482,1754482275128,-151.0,0.00038523,30]
[377669483,1754482275138,-20633.42279861,0.00038523,30]
[377669484,1754482275147,-151.0,0.00038523,30]
[377669485,1754482275156,-300.0,0.00038523,30]
[377669486,1754482275165,-500.0,0.00038523,30]
[377669487,1754482275176,-300.0,0.00038523,30]
[377669488,1754482275185,-151.0,0.00038523,30]
[377669489,1754482275194,-151.0,0.00038523,30]
[377669490,1754482275203,-15004.15764103,0.00038523,30]
[377669491,1754482275213,-151.0,0.00038523,30]
[377669492,1754482275222,-300.0,0.00038523,30]
[377669493,1754482275232,-500.0,0.00038523,30]
[377669494,1754482275241,-300.0,0.00038523,30]
[377669495,1754482275250,-151.0,0.00038523,30]
[377669496,1754482275259,-151.0,0.00038523,30]
[377669497,1754482275269,-151.0,0.00038523,30]
[377669498,1754482275279,-300.0,0.00038523,30]
[377669499,1754482275288,-300.0,0.00038523,30]
[377669500,1754482275297,-151.0,0.00038523,30]
[377669501,1754482275306,-151.0,0.00038523,30]
[377669502,1754482275316,-502.31646193,0.00038523,30]
[377669503,1754482275325,-300.0,0.00038523,30]
[377669504,1754482275334,-151.0,0.00038523,30]
[377669505,1754482275343,-300.0,0.00038523,30]
[377669506,1754482275352,-151.0,0.00038523,30]
[377669507,1754482275362,-300.0,0.00038523,30]